Cogmind - Beta 16.1 @@@ ROGUE MODE // 2026.04.05 @ 21:39:32 Player: GiggleBox Result: Self-destructed Performance ------------- Evolutions (9) 4500 Regions Visited (25) 5000 Robots Destroyed (405) 2025 Value Destroyed (19422) 19422 Prototype IDs (42) 840 Alien Tech Used (2) 400 Bonus (11557) 11557 TOTAL SCORE: 43744 Bonus ------- High Alert Combat Kills 3191 Follower Combat Kills 2706 Network Hubs Disabled 200 Met Warlord at Base 500 MAIN.C Attacked Warlord 500 Warlord Defense Kills 588 Built Enhanced Grunts 300 A7 Reached Mainframe 300 Met R17 at Cetus 500 Met R17 at Research 2000 Met Warlord at Research 2000 Met MAIN.C 5000 Met Warlord at Command 2000 Friendly Fire -8228 Cogmind --------- Core Integrity 782/1600 Matter 590/700 Energy 100/100 System Corruption 29% Temperature Hot (232) Movement Flying (59) Location -1/Command Parts ------- > --- POWER (2) -------- (None) > --- PROPULSION (5) --- Flying QT-XBT Exoskeleton > --- UTILITY (12) ----- Scrap Engine Advanced Matter Compressor Advanced Target Analyzer Advanced Target Analyzer Experimental Core Analyzer > --- WEAPON (6) ------- Hvy. Charged Shock Construct/C > --- INVENTORY (5) ---- Medium Matter Pod (100) Advanced Phase Shifter High-powered Tractor Beam Transdimensional Reconstructor Peak State ------------ > --- POWER ------------ Antimatter-Fission Reactor > --- PROPULSION ------- Flying QT-XBT Exoskeleton > --- UTILITY ---------- Armored Scrap Engine Improved Cooling System Large Storage Unit Experimental Optical Array Experimental Targeting Computer Experimental Core Analyzer Improved Armor Integrity Analyzer Advanced Transmission Jammer Centrium Medium Armor Plating > --- WEAPON ----------- Z-bomb Delivery System Hvy. Charged Shock Construct/C Particle Cleaver > --- INVENTORY -------- Experimental Heat Sink Long-range Sensor Array Advanced Kinecellerator Advanced Phase Shifter Advanced Point Defense System High-powered Tractor Beam Mapping Drone Bay Dimensional Node Initializer Transdimensional Reconstructor Subatomic Replicator Gamma Bomb Array [Rating: 193] Favorites ----------- Power Constructs Engine Cooled Ion Engine Power Core Light Fission Core Reactor Constructs Propulsion Light Treads Treads Light Treads Leg Aluminum Leg Hover Unit Aerolev Unit Flight Unit Constructs Utility High-capacity Storage Unit Device Armored Scrap Engine Storage High-capacity Storage Unit Processor Experimental Core Analyzer Hackware Ghost Barrier Protection Improved Light Armor Plating Artifact Phase Redirector Weapon Precision Assault Rifle Energy Gun Medium Laser Energy Cannon Constructs Ballistic Gun Precision Assault Rifle Ballistic Cannon Heavy Gauss Cannon Launcher Gamma Bomb Array Impact Weapon Power Maul Slashing Weapon Phasing Sabre Piercing Weapon Spear Build | -11 -10 -10 -8 -7 -7 -7 -5 -5 -5 -5 -5 -5 -4 -4 -4 -4 -4 -4 -3 -3 -3 -2 -2 -1 -1 ------- Run | Yrd Mat Sub Mat Fac Sto Rec Fac Was Fac Upp Upp War Pro Fac Ext Cet Arc Hub Res Qua Frg Res Tes Acc Com Slots Evolved 18 | . . . 4 2 . . 4 . . . . . . 2 . . . . 2 . . 2 . 2 . Power 1 | . . . . . . . 1 . . . . . . . . . . . . . . . . . . Propulsion 3 | . . . 1 1 . . 1 . . . . . . . . . . . . . . . . . . Utility 10 | . . . 2 . . . 1 . . . . . . 2 . . . . 1 . . 2 . 2 . Weapon 4 | . . . 1 1 . . 1 . . . . . . . . . . . 1 . . . . . . Parts Attached 147 | 4 5 1 18 11 22 5 5 3 . 2 . 5 . 2 4 2 . 1 12 5 3 17 5 4 11 Power 6 | . 1 . 2 . 2 . . . . . . . . . . . . . . . . . . . 1 Engine 5 | . 1 . 2 . 2 . . . . . . . . . . . . . . . . . . . . Core 1 | . . . . . . . . . . . . . . . . . . . . . . . . . 1 Reactor . | . . . . . . . . . . . . . . . . . . . . . . . . . . Propulsion 22 | 2 1 . 6 2 9 1 . . . . . . . . . . . . 1 . . . . . . Treads 20 | 2 1 . 6 2 8 1 . . . . . . . . . . . . . . . . . . . Leg 1 | . . . . . . . . . . . . . . . . . . . 1 . . . . . . Wheel . | . . . . . . . . . . . . . . . . . . . . . . . . . . Hover 1 | . . . . . 1 . . . . . . . . . . . . . . . . . . . . Flight . | . . . . . . . . . . . . . . . . . . . . . . . . . . Utility 84 | 1 3 . 5 5 5 1 5 3 . 2 . 3 . 2 4 2 . 1 8 4 3 12 3 4 8 Device 42 | 1 1 . 2 2 1 1 2 2 . 2 . 1 . 1 4 1 . 1 4 1 1 7 2 2 3 Storage 7 | . 1 . 1 . 1 . 1 . . . . . . . . . . . . . 1 . 1 . 1 Processor 19 | . . . . . . . 2 . . . . 2 . 1 . . . . 3 2 . 5 . 1 3 Hackware 2 | . . . . . . . . . . . . . . . . . . . . . . . . 1 1 Protection 13 | . 1 . 2 3 3 . . 1 . . . . . . . 1 . . 1 . 1 . . . . Artifact 1 | . . . . . . . . . . . . . . . . . . . . 1 . . . . . Weapon 35 | 1 . 1 5 4 6 3 . . . . . 2 . . . . . . 3 1 . 5 2 . 2 Energy Gun 2 | 1 . . . . . . . . . . . . . . . . . . . . . . . . 1 Energy Cannon 3 | . . . . . . . . . . . . 2 . . . . . . 1 . . . . . . Ballistic Gun 15 | . . 1 4 2 4 . . . . . . . . . . . . . 1 . . 2 . . 1 Ballistic Cannon 1 | . . . . . . . . . . . . . . . . . . . . . . 1 . . . Launcher 8 | . . . 1 1 2 1 . . . . . . . . . . . . 1 . . 1 1 . . Special Weapon . | . . . . . . . . . . . . . . . . . . . . . . . . . . Impact Weapon 2 | . . . . . . 2 . . . . . . . . . . . . . . . . . . . Slashing Weapon 3 | . . . . . . . . . . . . . . . . . . . . 1 . 1 1 . . Piercing Weapon 1 | . . . . 1 . . . . . . . . . . . . . . . . . . . . . Special Melee Weapon . | . . . . . . . . . . . . . . . . . . . . . . . . . . Unidentified Prototypes 24 | . . . 2 . 4 1 . 1 . . . 4 . . . 1 . . 3 1 . 5 1 . 1 Parts Lost 50 | . . . 3 5 9 . . . . . . . 1 . 1 . . . 3 1 3 . 3 12 9 Power 4 | . . . . . . . . . . . . . . . . . . . . . . . . 2 2 Propulsion 9 | . . . . 2 5 . . . . . . . . . . . . . . . . . 1 1 . Utility 28 | . . . 3 1 2 . . . . . . . . . 1 . . . 3 1 3 . 1 6 7 Weapon 9 | . . . . 2 2 . . . . . . . 1 . . . . . . . . . 1 3 . Highest Loss Streak 8 | . . . 1 3 3 . . . . . . . 1 . 1 . . . 1 1 2 . 1 8 8 To Critical Strikes 1 | . . . . . . . . . . . . . . . . . . . . . . . . 1 . Average Backups 16 | 6 8 10 15 19 19 18 17 18 17 17 18 18 17 17 15 19 19 18 16 19 16 12 14 14 4 Power . | 1 1 1 1 1 1 1 1 1 1 1 1 . . . . 1 1 . . . . . . . . Propulsion 2 | 4 5 4 4 3 1 1 . 2 1 . . . . 4 2 2 2 2 2 1 1 1 . 1 . Utility 8 | . 1 1 3 7 5 4 7 11 13 14 14 13 13 10 10 14 14 14 12 13 11 4 9 7 2 Weapon 4 | 1 1 3 6 7 11 11 6 3 2 2 2 3 3 2 3 2 1 1 2 1 . 4 1 1 . Tool/Special . | . . . . . . . . . . . . . . . . . . . . . . . . . . Unused Backups 167 | . 4 3 4 2 5 10 18 10 10 1 2 6 2 6 13 2 1 8 9 9 5 19 4 5 9 Power 8 | . 2 . 1 . . 1 2 . . . . 1 . . . . . 1 . . . . . . . Propulsion 67 | . 2 . . . 1 2 5 3 7 . 2 3 2 . 8 . 1 4 6 3 . 8 4 2 4 Utility 26 | . . 1 . 2 2 . 1 . . . . 1 . 3 . . . 2 . 5 5 . . 2 2 Weapon 64 | . . 2 3 . 2 7 10 7 3 1 . 1 . 3 5 2 . 1 3 1 . 11 . . 2 Tool/Special 2 | . . . . . . . . . . . . . . . . . . . . . . . . 1 1 Average Slot Usage (%) 63 | . 100 100 96 99 98 72 41 41 41 42 41 41 45 46 46 47 47 47 47 51 51 55 54 54 41 Engine 4 | . 14 14 8 7 7 6 5 5 5 5 5 3 . . . . . . . . . . . . . Reactor 1 | . . . . . . . . . . . . 1 . . 5 5 5 5 4 4 4 4 4 3 2 Treads 9 | . 28 28 27 30 26 17 3 . . 5 1 . 2 . . . . . . 1 4 2 3 . . Leg 1 | . . . . . . . . 3 4 . . . 2 5 . 5 5 3 2 1 . . . . . Device 12 | . 13 14 8 7 11 6 10 10 11 11 11 10 5 10 17 19 21 21 17 10 7 14 13 18 12 Storage 5 | . 14 14 9 7 7 7 5 5 5 5 5 5 5 5 5 5 5 5 4 4 4 4 4 3 . Processor 5 | . . . . . . . 5 5 5 5 5 5 11 12 5 5 5 5 5 16 17 15 17 18 7 Protection 4 | . . . 15 14 10 9 . . . . . . . . 3 1 . . 3 . 1 3 3 . . Ballistic Gun 7 | . 14 14 26 27 29 11 . . . . . . . . . . . . . . . . . . . Ballistic Cannon 2 | . . . . . . 1 3 3 5 4 . . 4 4 4 5 5 3 2 4 4 4 3 1 2 Peak Build Rating 193 | 7 8 9 35 44 53 56 78 102 89 87 83 109 123 127 116 121 119 121 149 158 160 188 193 190 154 Average Rating 91 | 6 7 8 30 42 47 47 72 90 85 81 79 88 117 121 106 119 119 118 133 149 153 174 175 176 122 On Entrance 88 | 6 7 8 9 35 37 44 56 73 84 84 80 83 109 119 115 115 119 119 117 139 152 146 184 175 94 Avg Prop Armor Cover (%) 2 | . . . . 4 2 5 . . . . . . . . . . . . . . . . . . . Naked Turns . | . . . . . . . . . . . . . . . . . . . . . . . . . . Heaviest Build 158 | 15 22 22 68 81 77 70 70 84 78 84 71 83 89 93 108 123 123 123 121 132 137 147 158 119 71 Greatest Support 287 | 40 40 40 60 80 80 80 105 126 132 132 132 126 126 70 121 121 121 167 167 235 235 285 285 287 229 Greatest Overweight (x) 2 | . . . 1 1 1 2 1 . . . . . 1 1 1 1 1 1 1 1 . . . . . Average Overweight (x) . | . . . . . . . . . . . . . . 1 . . 1 . . . . . . . . Largest Inventory Capacity 20 | 8 10 10 20 20 20 20 20 20 20 20 20 20 20 20 20 20 20 20 20 20 20 15 15 15 5 Average Capacity 17 | 8 9 10 17 20 20 20 20 20 20 20 20 20 20 20 20 20 20 20 20 20 18 15 15 14 5 Most Carried 20 | 6 10 10 20 20 20 20 20 20 20 19 20 20 19 20 20 20 20 20 20 20 20 15 15 15 5 Average Carried 16 | 6 8 9 15 19 19 18 17 18 17 18 18 18 17 17 15 19 19 18 16 19 16 13 14 14 4 Final Capacity 20 | 8 10 10 20 20 20 20 20 20 20 20 20 20 20 20 20 20 20 20 20 20 15 15 15 5 5 Final Carried 20 | 6 10 10 20 18 20 18 18 17 17 19 17 20 18 15 18 20 20 20 19 20 10 15 15 5 4 Scrap Engine Consumption 357 | . . . . . . 35 43 21 22 3 3 14 3 13 35 5 3 16 34 18 1 43 15 9 21 Constructs Created 4 | . . . . . . 3 . . . . . . . . . . . . . . . . . . 1 Constructs Modified 160 | . . . . . . 12 19 11 10 2 2 5 4 5 16 2 1 7 15 9 . 19 7 3 11 Class Distribution -------------------- 32% | Construct 18% | Scavenger-Construct 16% | Scavenger-Tank 12% | Commander-Construct 7% | Mutant 5% | Tank 3% | Hacker-Mutant Dominant Class ---------------- Mutant | -10/Materials Mutant | -10/Subcaves Scavenger-Tank | -8/Materials Scavenger-Tank | -7/Factory Scavenger-Tank | -7/Storage Construct | -7/Recycling Construct | -5/Factory Construct | -5/Waste Construct | -5/Factory Construct | -5/Upper Caves Construct | -5/Upper Caves Construct | -5/Warlord Construct | -4/Proximity Caves Construct | -4/Factory Commander-Construct | -4/Extension Commander-Construct | -4/Cetus Commander-Construct | -4/Archives Commander-Construct | -4/Hub_04(d) Construct | -3/Research Scavenger-Construct | -3/Quarantine Scavenger-Construct | -3/Protoforge Scavenger-Construct | -2/Research Scavenger-Construct | -2/Testing Scavenger-Construct | -1/Access Hacker-Mutant | -1/Command Resources | -11 -10 -10 -8 -7 -7 -7 -5 -5 -5 -5 -5 -5 -4 -4 -4 -4 -4 -4 -3 -3 -3 -2 -2 -1 -1 ----------- Run | Yrd Mat Sub Mat Fac Sto Rec Fac Was Fac Upp Upp War Pro Fac Ext Cet Arc Hub Res Qua Frg Res Tes Acc Com Matter Collected 14726 | 255 198 21 898 818 1331 456 350 163 196 130 5 218 51 407 2074 549 37 322 606 707 217 1671 1564 551 931 Remotely 1107 | . . . . . . . . . . . . . . . 512 222 . . . 235 . 138 . . . Salvage Created 20237 | 86 556 90 937 1249 1484 618 1556 520 163 70 . 291 201 478 1823 131 . 787 1032 2455 133 1624 2392 1167 394 Parts 866 | 7 38 5 53 76 78 21 80 . 4 5 . 9 5 19 48 4 . 14 44 118 6 65 92 58 17 Haulers Intercepted 30 | . 2 . 5 . 5 1 . . 1 . . . . 1 4 . . 6 3 1 . . . 1 . Recyclers Shooed 5 | . . . . 1 . . 1 . . . . . . 1 . . . 1 . 1 . . . . . Parts Field Recycled . | . . . . . . . . . . . . . . . . . . . . . . . . . . Retrieved Matter . | . . . . . . . . . . . . . . . . . . . . . . . . . . Parts Self-Destructed 23 | . . 15 . . . . . . . 4 . . 4 . . . . . . . . . . . . Prevented . | . . . . . . . . . . . . . . . . . . . . . . . . . . Parts Restored . | . . . . . . . . . . . . . . . . . . . . . . . . . . Kills | -11 -10 -10 -8 -7 -7 -7 -5 -5 -5 -5 -5 -5 -4 -4 -4 -4 -4 -4 -3 -3 -3 -2 -2 -1 -1 ------- Run | Yrd Mat Sub Mat Fac Sto Rec Fac Was Fac Upp Upp War Pro Fac Ext Cet Arc Hub Res Qua Frg Res Tes Acc Com Combat Hostiles Destroyed 297 | . 14 1 12 27 22 4 30 1 4 5 . 6 7 14 21 2 . 1 17 31 3 21 27 21 6 Melee 2 | . . . . . . . 1 . . . . . . . . . . . . . 1 . . . . Guns 68 | . 13 1 12 19 21 2 . . . . . . . . . . . . . . . . . . . Cannons 174 | . . . . . . 1 28 1 4 2 . 4 7 14 20 2 . . 12 24 2 14 26 7 6 AOE 44 | . . . . 8 1 . 1 . . 3 . 2 . . . . . 1 5 6 . 3 . 14 . Classes Destroyed 28 | 2 6 2 3 4 . . 1 1 1 . . . 1 . 1 . . . 2 1 . 2 . 1 . Worker 13 | . 1 . . 1 1 . . . 1 . . . . 1 1 . . . 1 4 . 1 1 . . Builder 14 | . 1 . . 2 . . 2 . . . . . . 3 2 . . . . 3 . . 1 . . Tunneler 3 | 2 . . . . . . . . . . . . . . 1 . . . . . . . . . . Hauler 30 | . 2 . 5 . 5 1 . . 1 . . . . 1 4 . . 6 3 1 . . . 1 . Recycler 19 | 1 . . 1 1 1 2 . . . . . . . 2 5 . . 1 . 2 . . 3 . . Mechanic 1 | . . . . . . . . . . . . . . . . . . . . 1 . . . . . Operator 7 | . 1 . . 2 1 . . . . . . . . . 1 . . 1 . . . . . . 1 Watcher 12 | . . . . 2 1 . 3 . . . . . . . . . . . . 2 . . . 2 2 Swarmer 66 | . 6 . . 1 1 1 12 . . 4 . 1 3 4 . . . . 9 5 2 1 . 13 3 Cutter 2 | . . . . . . . . . . . . . . . . . . . . . . . . 2 . Saboteur 1 | . . . . . . . 1 . . . . . . . . . . . . . . . . . . Grunt 100 | . 8 . 6 11 9 2 9 . 1 1 . 5 2 4 7 . . 1 3 13 . 5 11 1 1 Brawler 6 | . . . 1 . . . 1 . . . . . . . . . . . 1 . . 2 1 . . Duelist 2 | . . . . . . . . . . . . . 1 . . . . . . . . . 1 . . Protector 3 | . . . . 3 . . . . . . . . . . . . . . . . . . . . . Sentry 35 | . . . 4 1 9 . 2 . 1 . . . 1 . 13 . . . . 2 1 . . 1 . Demolisher 3 | . . . . . . . . . . . . . . . . . . . 1 . . 2 . . . Specialist 3 | . . . . 3 . . . . . . . . . . . . . . . . . . . . . Hunter 29 | . . . 1 2 . 1 3 . 1 . . . . 4 . . . . 2 1 . 4 8 1 1 Programmer 32 | . . . . 6 3 . 2 . . . . . . 2 . . . . . 10 . 1 5 3 . Heavy 1 | . . . . . . . . . 1 . . . . . . . . . . . . . . . . Behemoth 1 | . . . . . . . . . . . . . . . 1 . . . . . . . . . . Compactor 1 | . . . . . . . . 1 . . . . . . . . . . . . . . . . . Cetus Guard 2 | . . . . . . . . . . . . . . . . 2 . . . . . . . . . Striker 4 | . . . . . . . . . . . . . . . . . . . 1 . . 3 . . . Executioner 3 | . . . . . . . . . . . . . . . . . . . . . . 3 . . . Protovariant P 1 | . . . . . . . . . . . . . . . . . . . . . . . 1 . . Subdweller 3 | . . 1 . . . 2 . . . . . . . . . . . . . . . . . . . Federalist 1 | . . 1 . . . . . . . . . . . . . . . . . . . . . . . Thug 3 | . . . . . . . . . . . . 1 . . 1 1 . . . . . . . . . Guerrilla 1 | . . . . . . . . . . . . . . . . 1 . . . . . . . . . Fireman 2 | . . . . . . . . . . . . . . . . . . . . . . 1 . . 1 Best Kill Streak 14 | 2 5 1 3 12 6 1 14 1 2 4 . 4 4 8 11 1 . 4 6 10 2 3 5 10 3 Combat Bots Only 12 | . 4 1 3 11 5 1 12 1 1 4 . 4 4 4 4 1 . 1 6 7 2 3 5 10 3 Max Kills in Single Turn 6 | 1 1 1 1 5 1 1 3 1 1 3 . 3 1 2 3 1 . 3 3 2 1 2 2 6 1 Gunslinging 1 | . . . . 1 . . . . . . . . . . . . . . . . . . . . . Exploded 6 | . . . . 4 1 . 1 . . 3 . 2 . . . . . 1 3 2 . 1 . 6 . Melee 1 | . . . . . . . 1 . . . . . . . . . . . . . 1 . . . . Uniques/NPCs Destroyed 1 | . . . . . . . . . . . . . . . . 1 . . . . . . . . . A7 (-4/Cetus) Combat | -11 -10 -10 -8 -7 -7 -7 -5 -5 -5 -5 -5 -5 -4 -4 -4 -4 -4 -4 -3 -3 -3 -2 -2 -1 -1 -------- Run | Yrd Mat Sub Mat Fac Sto Rec Fac Was Fac Upp Upp War Pro Fac Ext Cet Arc Hub Res Qua Frg Res Tes Acc Com Hostile Shots Fired 2167 | . 38 5 54 125 366 12 111 . 14 13 7 79 54 133 68 . 1 26 72 126 130 90 219 358 66 Missed 747 | . 9 3 10 35 132 2 20 . 4 2 3 35 13 49 20 . 1 12 24 45 33 34 65 172 24 Hits 1420 | . 29 2 44 90 234 10 91 . 10 11 4 44 41 84 48 . . 14 48 81 97 56 154 186 42 Melee 17 | . . . 1 . . . 1 . . . . . . . . . . . . . . 3 3 9 . Projectile 1403 | . 29 2 43 90 234 10 90 . 10 11 4 44 41 84 48 . . 14 48 81 97 53 151 177 42 AOE 12 | . . . . . . . . . . . . 1 . . . . . . 2 1 . 2 . 2 4 Critical Strikes 68 | . 1 . 3 3 . . 6 . 1 1 1 4 1 3 4 . . 1 3 2 4 1 8 10 11 Part Disruptions 3 | . . . . 2 1 . . . . . . . . . . . . . . . . . . . . Damage Taken 29293 | . 318 42 651 1813 2009 118 1651 13 143 226 76 929 706 1290 1094 52 . 216 1303 2097 2424 1903 3240 4872 2107 Core 2760 | . 10 23 29 109 120 . 197 13 20 20 20 53 53 211 17 . . 36 67 165 383 192 204 405 413 Absorbed by Shields 291 | . . . . . . . . . . . . . . . 72 51 . 168 . . . . . . . Redirected to Core 184 | . . . . . . . . . . . . . . . . . . . . . 184 . . . . Regen/Repaired (Parts) 14062 | . . . . 166 121 . 1045 654 854 46 37 110 637 857 1357 62 . 38 490 1771 100 3093 1216 625 783 Core Remaining (%) 76 | 100 . 86 94 . . 67 . . . . . . 62 . . . . 77 . . 52 . 72 . . Volleys Fired 789 | 5 50 5 41 40 76 22 46 6 10 5 . 25 17 27 72 34 2 10 30 48 5 51 72 44 46 Largest 4 | 2 2 2 3 4 4 4 1 1 1 1 . 1 2 1 1 1 1 1 1 1 1 1 1 1 1 Hottest 474 | 70 70 80 84 112 112 109 209 424 424 424 . 424 474 224 247 213 213 220 392 354 354 354 118 97 183 Shots Fired 1290 | 10 100 10 119 149 287 65 46 6 10 5 . 25 18 27 72 34 2 10 30 47 5 51 72 44 46 Gun 721 | 10 100 10 117 141 284 59 . . . . . . . . . . . . . . . . . . . Cannon 527 | . . . . . . 6 45 6 10 4 . 22 18 27 72 34 2 10 28 39 5 42 71 40 46 Launcher 42 | . . . 2 8 3 . 1 . . 1 . 3 . . . . . . 2 8 . 9 1 4 . Special . | . . . . . . . . . . . . . . . . . . . . . . . . . . Kinetic 1025 | 5 50 5 117 141 284 64 34 4 6 4 . . 1 20 55 34 2 8 28 39 5 42 54 13 10 Thermal 176 | 5 50 5 . . . 1 11 2 4 . . 6 . . 17 . . 2 . . . . 17 27 29 Explosive 14 | . . . 2 4 3 . 1 . . 1 . 3 . . . . . . . . . . . . . Electromagnetic 42 | . . . . 4 . . . . . . . . . 7 . . . . 2 8 . 9 1 4 7 Entropic 33 | . . . . . . . . . . . . 16 17 . . . . . . . . . . . . Robot Hit Streak 36 | 4 7 6 22 36 23 9 4 4 5 7 . 12 9 7 30 9 2 8 10 8 11 8 11 6 5 Robot Miss Streak 9 | 1 4 1 1 3 4 1 9 2 2 3 . 2 2 8 5 4 2 2 5 3 2 4 3 2 4 Penetration Max 3 | . . . . . . . 1 . . . . . . 1 3 1 . . . 1 . 1 1 . . Secondary Targets 12 | . 2 . . 8 2 . . . . . . . . . . . . . . . . . . . . Max Gunslinging Chain 2 | . 1 . . 2 1 . . . . . . . . . . . . . . . . . . . . Shots Hit Robots 895 | 6 61 8 84 102 179 54 40 5 8 4 . 17 13 25 56 30 1 8 16 50 5 30 50 18 25 Core Hits 600 | 4 27 5 29 82 67 20 31 2 7 4 . 13 7 30 38 17 . 9 25 47 3 44 28 43 18 Critical Kills 3 | . . . . . . . . . . . . . . . . . . . . . . . 1 1 1 Critical Parts Destroyed 7 | . . . 1 . 3 . . . . . . . . . . . . . . . . . 1 2 . Critical Strikes 30 | . 2 1 1 . 3 . . . . . . 5 5 1 . . . . . . . 3 4 3 2 Burn 3 | . 2 1 . . . . . . . . . . . . . . . . . . . . . . . Destroy 11 | . . . 1 . 3 . . . . . . . . . . . . . . . . . 2 3 2 Blast 6 | . . . . . . . . . . . . . . 1 . . . . . . . 3 2 . . Sunder 10 | . . . . . . . . . . . . 5 5 . . . . . . . . . . . . Melee Attacks 69 | . . . . 10 . 4 1 . . . 2 . . 3 . . . . . 24 13 5 6 1 . Thermal 3 | . . . . . . . . . . . . . . . . . . . . . . . 2 1 . Impact 10 | . . . . . . 4 1 . . . 2 . . 3 . . . . . . . . . . . Slashing 46 | . . . . . . . . . . . . . . . . . . . . 24 13 5 4 . . Piercing 10 | . . . . 10 . . . . . . . . . . . . . . . . . . . . . Sneak Attacks 10 | . . . . . . 2 . . . . . . . . . . . . . 7 . . 1 . . Combat Hostiles . | . . . . . . . . . . . . . . . . . . . . . . . . . . Follow-up Attacks . | . . . . . . . . . . . . . . . . . . . . . . . . . . Damage Inflicted 70147 | 89 822 149 1618 3948 3932 1368 4753 696 1005 516 . 1781 896 2845 7230 3393 195 1537 3164 7858 419 6034 9874 4299 1726 Guns 9104 | 89 782 149 1617 2090 3487 890 . . . . . . . . . . . . . . . . . . . Cannons 50863 | . . . . . . 365 4646 696 985 254 . 1395 896 2845 7230 3393 195 926 2537 5302 326 4641 9535 2970 1726 Explosions 8670 | . . . . 1840 403 . 107 . . 262 . 386 . . . . . 473 597 1746 . 1348 179 1329 . Melee 1221 | . . . . . . 113 . . . . . . . . . . . . . 810 93 45 160 . . Ramming 289 | . 40 . 1 18 42 . . . 20 . . . . . . . . 138 30 . . . . . . Kinetic 46155 | 24 404 86 1617 2090 3487 1122 3544 610 423 254 . . . 2279 5417 3393 195 603 2537 5302 326 4641 6964 82 755 Thermal 12376 | 65 378 63 . 160 . 133 1102 86 562 . . 511 . . 1813 . . 323 113 42 . . 2571 3513 941 Explosive 3410 | . . . . 1300 403 . 107 . . 262 . 386 . . . . . . 256 517 . 179 . . . Electromagnetic 4916 | . . . . 380 . . . . . . . . . 566 . . . 473 228 1187 . 1169 179 704 30 Impact 113 | . . . . . . 113 . . . . . . . . . . . . . . . . . . . Slashing 1108 | . . . . . . . . . . . . . . . . . . . . 810 93 45 160 . . Piercing . | . . . . . . . . . . . . . . . . . . . . . . . . . . Entropic 1780 | . . . . . . . . . . . . 884 896 . . . . . . . . . . . . Highest Corruption 29 | . . . 4 6 4 4 2 2 2 2 2 2 1 1 2 2 2 10 . 5 5 3 11 6 29 Average Corruption 3 | . . . 4 2 2 4 1 2 2 2 2 1 1 1 1 2 2 9 . 3 5 2 6 1 7 Corruption Purged 5 | . . . . 5 . . . . . . . . . . . . . . . . . . . . . Corruption Blocked . | . . . . . . . . . . . . . . . . . . . . . . . . . . Effects 283 | . . . 6 10 37 42 8 14 13 3 5 1 1 4 13 10 4 12 . 11 11 13 24 8 33 Message Errors 67 | . . . 1 . 10 14 1 3 2 . 3 . . . 5 2 1 2 . 2 1 5 6 3 6 Matter Fused 53 | . . . 4 2 5 4 2 7 4 2 1 . . 2 1 . 1 . . 2 3 2 3 3 5 Heat Flow Errors 44 | . . . . 2 7 5 2 . 3 . . 1 . . 2 3 1 2 . 2 3 2 1 . 8 Energy Discharges 41 | . . . . 2 1 9 3 3 2 . . . . 1 1 2 . 3 . . 1 1 5 1 6 Parts Rejected 5 | . . . . . 1 . . . . . . . 1 . . . . . . . 1 . 2 . . Parts Fused 4 | . . . . 1 . 1 . . . 1 . . . . . . 1 . . . . . . . . Data Loss (minor) 31 | . . . . 1 4 7 . . 1 . 1 . . . 3 1 . . . 2 1 1 3 1 5 Data Loss (major) 17 | . . . 1 . 3 1 . 1 . . . . . 1 . 1 . 3 . 1 1 1 2 . 1 Misfires 6 | . . . . 1 4 1 . . . . . . . . . . . . . . . . . . . Alerts 8 | . . . . . . . . . 1 . . . . . 1 1 . 1 . 1 . 1 1 . 1 Misdirections 3 | . . . . . . . . . . . . . . . . . . 1 . . . . 1 . 1 Weapon Failures 4 | . . . . 1 2 . . . . . . . . . . . . . . 1 . . . . . Overload Shots . | . . . . . . . . . . . . . . . . . . . . . . . . . . Overflow Damage 7301 | . . . . . 15 101 516 . 52 85 . 183 71 92 291 165 50 35 194 1206 84 835 2107 1020 199 Projectiles 6748 | . . . . . . . 516 . 52 . . 183 71 92 291 165 50 . 191 1001 84 825 2045 983 199 Explosions 141 | . . . . . 15 . . . . 85 . . . . . . . . 3 1 . . . 37 . Melee 412 | . . . . . . 101 . . . . . . . . . . . 35 . 204 . 10 62 . . Knockbacks 140 | . . . . . . 2 22 . 1 2 . . . 19 10 32 . 2 7 12 1 7 17 1 5 Impact 2 | . . . . . . . . . . . . . . . . . . 2 . . . . . . . Kinetic 119 | . . . . . . 2 21 . 1 2 . . . 16 10 25 . . 5 11 1 7 12 1 5 Secondary 19 | . . . . . . . 1 . . . . . . 3 . 7 . . 2 1 . . 5 . . Self-Inflicted Damage 643 | . . . . 46 . . . . . . . 47 . . . . . 97 73 127 . 40 11 202 . Shots 26 | . . . . 3 . . . . . . . 1 . . . . . 1 1 4 . 6 1 9 . Rammed 9 | . 5 . 1 1 2 . . . . . . . . . . . . . . . . . . . . Targets Rammed 21 | . 7 . 2 2 3 . . . 1 . . . . . . . . 4 2 . . . . . . Kicked 7 | . . . . . . . . . 1 . . . . . . . . 4 2 . . . . . . Crushed 5 | . 2 . 1 1 1 . . . . . . . . . . . . . . . . . . . . Highest Temperature 583 | 36 126 . 184 199 274 245 427 583 467 401 13 384 436 336 282 323 246 250 410 388 295 427 245 212 441 Average Temperature 109 | 16 30 . 40 66 58 52 160 229 194 188 10 170 134 147 116 115 115 111 145 164 141 156 69 46 155 Received Heat Transfer 4129 | . 165 6 270 363 642 18 457 . 27 127 54 126 87 85 253 . . 39 111 159 564 27 243 216 90 Effects 29 | . . . . . . . 2 1 5 1 . 1 . 11 . . . . . . . 6 . . 2 Shutdowns 2 | . . . . . . . . . . 1 . . . . . . . . . . . 1 . . . Energy Bleed 4 | . . . . . . . . . 1 . . 1 . . . . . . . . . 2 . . . Interference 14 | . . . . . . . 2 . . . . . . 9 . . . . . . . 2 . . 1 Matter Decay 1 | . . . . . . . . . . . . . . . . . . . . . . 1 . . . Short Circuit 2 | . . . . . . . . . . . . . . 1 . . . . . . . . . . 1 Damage (minor) 2 | . . . . . . . . 1 . . . . . 1 . . . . . . . . . . . Damage (major) 4 | . . . . . . . . . 4 . . . . . . . . . . . . . . . . Siege Activations . | . . . . . . . . . . . . . . . . . . . . . . . . . . Martial Activations . | . . . . . . . . . . . . . . . . . . . . . . . . . . Shielding Activations . | . . . . . . . . . . . . . . . . . . . . . . . . . . Robots Disrupted . | . . . . . . . . . . . . . . . . . . . . . . . . . . Combat Hostiles . | . . . . . . . . . . . . . . . . . . . . . . . . . . Robots Corrupted 11 | . . . . . . 2 . . . . . . . . . . . 2 . 2 . 4 1 . . Combat Hostiles 6 | . . . . . . . . . . . . . . . . . . . . 1 . 4 1 . . Parts Fried 42 | . . . . 1 . 4 . . . . . . . 4 . . . 4 2 11 . 9 6 1 . Impact Corruptions 12 | . . . . . . 4 . . . . . . . . . . . 2 . 2 . . 4 . . Robots Melted 2 | . 1 . . . . . . . . . . . . . 1 . . . . . . . . . . Combat Hostiles 2 | . 1 . . . . . . . . . . . . . 1 . . . . . . . . . . Parts Melted 11 | . 1 . . . 2 . 1 . . . . . . . . . . . 1 . . 1 1 4 . Heat Transferred 6209 | 185 1258 259 . 250 . 125 575 37 222 . . 111 . . 1036 . . . 50 50 . . 481 1155 415 Parts Sabotaged 3 | . . . . . . . 1 . . . . . . . . . . . . . . . 2 . . Parts Stolen . | . . . . . . . . . . . . . . . . . . . . . . . . . . Parts Stripped . | . . . . . . . . . . . . . . . . . . . . . . . . . . Power Chain Reactions 7 | . . . . 1 . . . . . . . . . . . . . . 1 1 . 1 . 3 . Alert | -11 -10 -10 -8 -7 -7 -7 -5 -5 -5 -5 -5 -5 -4 -4 -4 -4 -4 -4 -3 -3 -3 -2 -2 -1 -1 ------- Run | Yrd Mat Sub Mat Fac Sto Rec Fac Was Fac Upp Upp War Pro Fac Ext Cet Arc Hub Res Qua Frg Res Tes Acc Com Maximum Alert Level 4 | . . . . 1 2 . 3 1 3 . . . . 1 3 2 1 3 2 4 3 2 3 4 3 Low Security (%) 45 | 100 100 . 100 47 74 100 53 75 41 . . . . 48 59 . 6 23 . . . . . . . Level 1 18 | . . . . 52 23 . 1 24 9 . . . . 51 4 1 93 55 . 31 . 27 61 1 . Level 2 29 | . . . . . 2 . 17 . 29 . . . . . 3 98 . 14 100 43 97 72 28 91 92 Level 3 6 | . . . . . . . 27 . 20 . . . . . 31 . . 6 . 17 2 . 10 3 7 Level 4 . | . . . . . . . . . . . . . . . . . . . . 7 . . . 3 . Level 5 . | . . . . . . . . . . . . . . . . . . . . . . . . . . High Security . | . . . . . . . . . . . . . . . . . . . . . . . . . . Max Security . | . . . . . . . . . . . . . . . . . . . . . . . . . . Peak Influence 1136 | 10 132 . 194 303 461 185 910 317 897 . . . . 277 964 564 308 1056 661 1114 714 646 794 1136 716 Initial 716 | . . . . 77 109 145 152 317 . . . . . 40 131 512 196 90 535 344 614 401 360 472 716 Average 297 | 1 60 . 41 170 132 24 348 114 400 . . . . 143 383 498 266 318 523 588 602 460 435 507 639 Influence Increases 15554 | 15 439 . 501 733 987 219 1421 52 1521 170 90 150 195 505 1413 428 212 1288 621 1186 300 822 886 1131 269 Destroy 0b10 Robot/C 7000 | . 280 . 240 480 500 60 660 . 500 100 . 120 140 280 600 160 80 280 340 620 60 420 540 420 120 Destroy 0b10 Robot/NC 650 | 15 25 . 30 55 45 30 25 . 50 . . . . 35 85 10 5 95 20 65 . 5 25 15 15 Destroy Leader 1232 | . 64 . 90 94 182 . 116 . 116 10 . . 10 52 54 . . 82 46 86 20 70 70 66 4 Allied During Kill 1590 | . . . . . 90 13 14 . 452 . . . . . 503 170 85 263 . . . . . . . Successful Hack 371 | . 5 . 25 28 23 9 . . 39 . . . . 9 32 9 . . 17 58 . . 14 75 28 Select Force Hacks 150 | . 30 . 30 . . 90 . . . . . . . . . . . . . . . . . . . Disable Machine 1080 | . 15 . 30 30 90 15 150 . 120 . . . . 15 15 15 30 90 45 150 15 105 105 45 . Anti-Garrison Action 150 | . . . . . . . . . . . . . . . . . . 150 . . . . . . . Destroy Structure 1876 | . 5 . 26 31 27 2 216 52 184 . . . . 114 124 64 12 328 138 132 40 132 132 105 12 Advance Influence 150 | . . . . . . . 150 . . . . . . . . . . . . . . . . . . Partial Spotted 165 | . . . . . . . 15 . . . . . . . . . . . . 45 30 30 . 15 30 Lose Combat Pursuer 1140 | . 15 . 30 15 30 . 75 . 60 60 90 30 45 . . . . . 15 30 135 60 . 390 60 Influence Decreases 15051 | 15 355 84 330 662 854 589 520 958 797 485 286 285 208 301 766 854 444 526 1029 706 678 895 739 798 887 Entered New Map 5303 | . . 41 . 94 133 230 3 589 . 269 78 213 78 25 138 404 294 168 485 268 478 313 281 316 405 Time Decay 8166 | 15 355 43 300 518 545 319 460 369 420 206 198 72 130 276 526 310 70 198 514 428 170 542 428 362 392 Lost Part 476 | . . . 30 50 76 . . . . . . . . . 10 . . . 30 10 30 . 30 120 90 Lost Ally 956 | . . . . . 100 40 57 . 227 10 10 . . . 92 140 80 160 . . . 40 . . . Purge Threat 150 | . . . . . . . . . 150 . . . . . . . . . . . . . . . . Squads Dispatched 96 | . 5 . 8 10 9 . 5 . 6 . . . . 5 2 . . 8 4 8 1 2 7 9 7 Investigation 13 | . 1 . 3 2 2 . . . . . . . . . . . . 1 2 . . 1 . 1 . Extermination 24 | . . . . 4 2 . 2 . 2 . . . . 2 . . . 1 . 3 . . 2 3 3 Reinforcement 39 | . 4 . 3 1 1 . 2 . 3 . . . . 3 2 . . 2 2 3 1 1 4 4 3 Assault 8 | . . . . . . . 1 . 1 . . . . . . . . 2 . 2 . . 1 . 1 Garrison 12 | . . . 2 3 4 . . . . . . . . . . . . 2 . . . . . 1 . Intercept . | . . . . . . . . . . . . . . . . . . . . . . . . . . Searches Triggered . | . . . . . . . . . . . . . . . . . . . . . . . . . . Construction Impeded 5 | . . . . . . . 1 . . . . . . . 2 . . 1 . 1 . . . . . Haulers Reinforced 5 | . . . . . 1 . . . 2 . . . . 1 . . . . . . . . . 1 . Active Scanning Responses . | . . . . . . . . . . . . . . . . . . . . . . . . . . Cargo Convoy Interrupts 2 | . . . . 1 . . 1 . . . . . . . . . . . . . . . . . . Stealth | -11 -10 -10 -8 -7 -7 -7 -5 -5 -5 -5 -5 -5 -4 -4 -4 -4 -4 -4 -3 -3 -3 -2 -2 -1 -1 --------- Run | Yrd Mat Sub Mat Fac Sto Rec Fac Was Fac Upp Upp War Pro Fac Ext Cet Arc Hub Res Qua Frg Res Tes Acc Com Distress Signals 44 | . 3 . 4 2 2 1 3 . 1 . . . . 1 1 2 . 2 5 1 2 10 2 . 2 Communications Jammed 60 | . . . . . 6 . . . . . . . . . . . . . . . 7 6 41 . . Distress Signals 55 | . . . . . 6 . . . . . . . . . . . . . . . 7 6 36 . . Times Spotted 696 | . 24 3 21 42 37 6 45 1 22 10 6 54 9 22 32 10 4 15 31 41 45 63 42 70 41 Peak Tracking Total 33 | . 4 1 6 12 4 2 14 1 5 4 3 11 5 6 5 5 2 4 6 6 33 6 7 31 6 Tactical Retreats 38 | . 1 . 2 1 2 . 2 . 2 2 4 2 2 . . . . . 1 2 3 3 . 7 2 Traps | -11 -10 -10 -8 -7 -7 -7 -5 -5 -5 -5 -5 -5 -4 -4 -4 -4 -4 -4 -3 -3 -3 -2 -2 -1 -1 ------- Run | Yrd Mat Sub Mat Fac Sto Rec Fac Was Fac Upp Upp War Pro Fac Ext Cet Arc Hub Res Qua Frg Res Tes Acc Com Traps Triggered 14 | . . . 2 1 1 . 1 . . . . . . 1 4 . . 2 . 1 . . . 1 . Indirectly . | . . . . . . . . . . . . . . . . . . . . . . . . . . Trap Hack Attempts . | . . . . . . . . . . . . . . . . . . . . . . . . . . Triggered . | . . . . . . . . . . . . . . . . . . . . . . . . . . Disarmed . | . . . . . . . . . . . . . . . . . . . . . . . . . . Reprogrammed . | . . . . . . . . . . . . . . . . . . . . . . . . . . Reused . | . . . . . . . . . . . . . . . . . . . . . . . . . . Traps Extracted . | . . . . . . . . . . . . . . . . . . . . . . . . . . Installed . | . . . . . . . . . . . . . . . . . . . . . . . . . . Triggered . | . . . . . . . . . . . . . . . . . . . . . . . . . . Machines | -11 -10 -10 -8 -7 -7 -7 -5 -5 -5 -5 -5 -5 -4 -4 -4 -4 -4 -4 -3 -3 -3 -2 -2 -1 -1 ---------- Run | Yrd Mat Sub Mat Fac Sto Rec Fac Was Fac Upp Upp War Pro Fac Ext Cet Arc Hub Res Qua Frg Res Tes Acc Com Machines Disabled 76 | . 1 . 2 2 6 1 10 . 8 . . 1 . 1 3 1 2 7 3 10 1 7 7 3 . Max in Single Turn 2 | . 1 . 1 1 1 1 1 . 1 . . 1 . 1 1 1 . 2 1 2 1 2 1 2 . Garrison Access 4 | . . . . . . . . . . . . . . . . . . 1 . . . 2 1 . . Network Hub 1 | . . . . . . . . . . . . . . . . . . 1 . . . . . . . Machines Repaired . | . . . . . . . . . . . . . . . . . . . . . . . . . . Machines Dismantled . | . . . . . . . . . . . . . . . . . . . . . . . . . . Machines Sabotaged . | . . . . . . . . . . . . . . . . . . . . . . . . . . Overloaded Fab Kills . | . . . . . . . . . . . . . . . . . . . . . . . . . . Hacking | -11 -10 -10 -8 -7 -7 -7 -5 -5 -5 -5 -5 -5 -4 -4 -4 -4 -4 -4 -3 -3 -3 -2 -2 -1 -1 --------- Run | Yrd Mat Sub Mat Fac Sto Rec Fac Was Fac Upp Upp War Pro Fac Ext Cet Arc Hub Res Qua Frg Res Tes Acc Com Machines Accessed 101 | . 3 . 9 7 13 9 5 . 4 1 . 4 . 1 10 1 . 2 4 8 1 4 5 6 4 Terminals 60 | . 2 . 6 3 12 4 2 . 3 . . . . 1 9 1 . 1 1 6 1 . 1 4 3 Fabricators 7 | . . . . 1 . . 1 . . . . . . . . . . . 1 . . 2 1 1 . Repair Stations 4 | . . . . 2 1 . . . . . . . . . . . . . . . . 1 . . . Recycling Units 10 | . 1 . 2 . . 4 . . 1 . . . . . 1 . . . . . . . . . 1 Scanalyzers 9 | . . . 1 1 . . 1 . . . . . . . . . . . 1 2 . . 2 1 . Garrison Access 5 | . . . . . . . 1 . . . . . . . . . . 1 1 . . 1 1 . . Total Hacks 246 | . 12 . 25 13 22 24 8 . 12 1 . 13 . 4 18 3 . 3 12 26 4 8 7 14 17 Successful 102 | . 5 . 14 5 7 9 1 . 7 1 . 13 . 4 7 1 . 1 2 8 1 3 3 5 5 Failed 144 | . 7 . 11 8 15 15 7 . 5 . . . . . 11 2 . 2 10 18 3 5 4 9 12 Catastrophic 26 | . 1 . 1 . 2 3 2 . . . . . . . 2 1 . . 3 2 1 2 1 3 2 Database Lockouts . | . . . . . . . . . . . . . . . . . . . . . . . . . . Manual 94 | . 12 . 13 11 11 15 . . 7 . . . . 2 2 1 . 1 6 4 1 1 2 1 4 Terminals 153 | . 11 . 15 8 21 11 3 . 10 . . . . 4 17 3 . 1 6 17 4 . 3 9 10 Fabricators 14 | . . . . 1 . . 2 . . . . . . . . . . . 2 . . 5 1 3 . Repair Stations 5 | . . . . 3 1 . . . . . . . . . . . . . . . . 1 . . . Recycling Units 27 | . 1 . 5 . . 11 . . 2 . . . . . 1 . . . . . . . . . 7 Scanalyzers 23 | . . . 5 1 . . 1 . . . . . . . . . . . 3 9 . . 2 2 . Garrison Access 8 | . . . . . . . 2 . . . . . . . . . . 2 1 . . 2 1 . . Terminal Hacks 50 | . 2 . 4 1 5 3 . . 5 1 . 13 . 3 6 1 . . . 2 . . . 2 2 Record 14 | . . . . . . . . . . . . 12 . . . . . . . 2 . . . . . Part Schematic 1 | . . . . . . . . . . . . . . . 1 . . . . . . . . . . Robot Analysis 2 | . 2 . . . . . . . . . . . . . . . . . . . . . . . . Prototype ID Bank 5 | . . . 1 . 2 1 . . . . . . . 1 . . . . . . . . . . . Open Door 10 | . . . . . 2 . . . . 1 . 1 . . 3 1 . . . . . . . 1 1 Branch Access Points 4 | . . . 1 1 . . . . 1 . . . . . . . . . . . . . . 1 . Terminal Index 1 | . . . . . . . . . . . . . . . . . . . . . . . . . 1 Alert Level 3 | . . . . . 1 . . . . . . . . 1 1 . . . . . . . . . . Unreport Threat 1 | . . . . . . . . . 1 . . . . . . . . . . . . . . . . Locate Traps 5 | . . . 1 . . . . . 2 . . . . 1 1 . . . . . . . . . . Hauler Manifests 1 | . . . 1 . . . . . . . . . . . . . . . . . . . . . . Zone Layout 1 | . . . . . . . . . 1 . . . . . . . . . . . . . . . . Release Object 2 | . . . . . . 2 . . . . . . . . . . . . . . . . . . . Fabricator Hacks 5 | . . . . 1 . . 1 . . . . . . . . . . . . . . 2 1 . . Network Status 2 | . . . . . . . . . . . . . . . . . . . . . . 1 1 . . Load Schematic 1 | . . . . . . . . . . . . . . . . . . . . . . 1 . . . Build 2 | . . . . 1 . . 1 . . . . . . . . . . . . . . . . . . Repair Station Hacks . | . . . . . . . . . . . . . . . . . . . . . . . . . . Recycling Unit Hacks 3 | . . . . . . 1 . . . . . . . . . . . . . . . . . . 2 Retrieve Matter 1 | . . . . . . . . . . . . . . . . . . . . . . . . . 1 Retrieve Components 2 | . . . . . . 1 . . . . . . . . . . . . . . . . . . 1 Scanalyzer 11 | . . . 4 . . . . . . . . . . . . . . . 1 4 . . . 2 . Insert Component 7 | . . . 1 . . . . . . . . . . . . . . . 1 3 . . . 2 . Retrieve Study 4 | . . . 3 . . . . . . . . . . . . . . . . 1 . . . . . Garrison Access Hacks 1 | . . . . . . . . . . . . . . . . . . . . . . . 1 . . Seal Access 1 | . . . . . . . . . . . . . . . . . . . . . . . 1 . . Unauthorized Hacks 32 | . 3 . 6 3 2 5 . . 2 . . . . 1 1 . . 1 1 2 1 1 1 1 1 Terminals 22 | . 2 . 5 2 1 . . . 2 . . . . 1 1 . . 1 1 2 1 . 1 1 1 Botnet 18 | . 1 . 3 2 1 . . . 2 . . . . 1 1 . . . 1 2 1 . 1 1 1 Skim 3 | . 1 . 2 . . . . . . . . . . . . . . . . . . . . . . Sabotage 1 | . . . . . . . . . . . . . . . . . . 1 . . . . . . . Fabricators . | . . . . . . . . . . . . . . . . . . . . . . . . . . Repair Stations 3 | . . . . 1 1 . . . . . . . . . . . . . . . . 1 . . . Patch 3 | . . . . 1 1 . . . . . . . . . . . . . . . . 1 . . . Recycling Units 7 | . 1 . 1 . . 5 . . . . . . . . . . . . . . . . . . . Reject 1 | . . . . . . 1 . . . . . . . . . . . . . . . . . . . Mask 1 | . . . . . . 1 . . . . . . . . . . . . . . . . . . . Tunnel 5 | . 1 . 1 . . 3 . . . . . . . . . . . . . . . . . . . Scanalyzers . | . . . . . . . . . . . . . . . . . . . . . . . . . . Garrison Access . | . . . . . . . . . . . . . . . . . . . . . . . . . . Data Cores Recovered 5 | . . . . 1 2 . . . . . . . . . 1 . . . . . . . . . 1 Used 2 | . . . . . . . . . . . . . . . 1 . . . . . . . . . 1 Hacking Detections 76 | . 2 . 8 4 11 6 5 . 4 . . . . 1 7 1 . 1 4 7 1 3 3 5 3 Full Trace Events 2 | . . . . . 1 . . . . . . . . . . . . . . . . . . 1 . Feedback Events . | . . . . . . . . . . . . . . . . . . . . . . . . . . Feedback Blocked . | . . . . . . . . . . . . . . . . . . . . . . . . . . Robot Schematics Acquired . | . . . . . . . . . . . . . . . . . . . . . . . . . . Robots Built . | . . . . . . . . . . . . . . . . . . . . . . . . . . Authchips . | . . . . . . . . . . . . . . . . . . . . . . . . . . Time . | . . . . . . . . . . . . . . . . . . . . . . . . . . Total Robot Build Rating . | . . . . . . . . . . . . . . . . . . . . . . . . . . Part Schematics Acquired 1 | . . . . . . . . . . . . . . . 1 . . . . . . . . . . Parts Built 4 | . . . . 2 . . 2 . . . . . . . . . . . . . . . . . . Authchips . | . . . . . . . . . . . . . . . . . . . . . . . . . . Time 122 | . . . . 58 . . 64 . . . . . . . . . . . . . . . . . . Total Part Build Rating 30 | . . . . 14 . . 16 . . . . . . . . . . . . . . . . . . Part Studies Acquired 4 | . . . 3 . . . . . . . . . . . . . . . . 1 . . . . . Parts Repaired . | . . . . . . . . . . . . . . . . . . . . . . . . . . Time . | . . . . . . . . . . . . . . . . . . . . . . . . . . Parts Recycled . | . . . . . . . . . . . . . . . . . . . . . . . . . . Recycled Matter . | . . . . . . . . . . . . . . . . . . . . . . . . . . Retrieved Matter . | . . . . . . . . . . . . . . . . . . . . . . . . . . Retrieved Components 9 | . . . . . . 9 . . . . . . . . . . . . . . . . . . . Parts Scanalyzed . | . . . . . . . . . . . . . . . . . . . . . . . . . . Part Schematics Acquired . | . . . . . . . . . . . . . . . . . . . . . . . . . . Parts Damaged . | . . . . . . . . . . . . . . . . . . . . . . . . . . Bothacking | -11 -10 -10 -8 -7 -7 -7 -5 -5 -5 -5 -5 -5 -4 -4 -4 -4 -4 -4 -3 -3 -3 -2 -2 -1 -1 ------------ Run | Yrd Mat Sub Mat Fac Sto Rec Fac Was Fac Upp Upp War Pro Fac Ext Cet Arc Hub Res Qua Frg Res Tes Acc Com Used RIF Installer . | . . . . . . . . . . . . . . . . . . . . . . . . . . Robots Hacked . | . . . . . . . . . . . . . . . . . . . . . . . . . . Non-combat . | . . . . . . . . . . . . . . . . . . . . . . . . . . Combat . | . . . . . . . . . . . . . . . . . . . . . . . . . . Robot Hacks Applied . | . . . . . . . . . . . . . . . . . . . . . . . . . . Relay Couplers Released 9 | . . . . . . . . . 4 . . . . . . . . 3 . . . 2 . . . Machine Destruction 5 | . . . . . . . . . . . . . . . . . . 3 . . . 2 . . . Programmers 4 | . . . . . . . . . 4 . . . . . . . . . . . . . . . . Fabnet Peak Effective % . | . . . . . . . . . . . . . . . . . . . . . . . . . . Robots Rewired 29 | . . . . . . 6 . . . . . . . . 23 . . . . . . . . . . Allies Hacked 3 | . . . . . . . . . 3 . . . . . . . . . . . . . . . . Hacks Repelled 3 | . . . . . . . . . . . . . . . . . . . . . . . . . 3 Allies | -11 -10 -10 -8 -7 -7 -7 -5 -5 -5 -5 -5 -5 -4 -4 -4 -4 -4 -4 -3 -3 -3 -2 -2 -1 -1 -------- Run | Yrd Mat Sub Mat Fac Sto Rec Fac Was Fac Upp Upp War Pro Fac Ext Cet Arc Hub Res Qua Frg Res Tes Acc Com Total Allies 70 | . . . . . 10 6 . 20 . . . . . . 29 5 . . . . . . . . . Largest Group 20 | . . . . . 10 7 7 20 19 1 . . . . 20 20 13 10 . . . . . . . Highest-Rated Group 1144 | . . . . . 173 146 146 812 787 26 . . . . 929 1144 772 592 . . . . . . . Highest-Rated Ally 159 | . . . . . 29 32 32 50 50 26 . . . . 159 159 96 96 . . . . . . . Total Orders 4 | . . . . . . . . . . . . . . . . . . . 1 . 1 2 . . . EXPLORE 2 | . . . . . . . . . . . . . . . . . . . . . . 2 . . . RETURN 2 | . . . . . . . . . . . . . . . . . . . 1 . 1 . . . . Ally Attacks 557 | . . . . . 22 24 22 24 102 . . . . . 131 97 61 74 . . . . . . . Total Damage 18341 | . . . . . 204 362 389 1180 4300 . . . . . 2910 2957 1986 4053 . . . . . . . Kills 97 | . . . . . 3 3 4 2 31 . . . . . 15 9 5 25 . . . . . . . Allies Corrupted 2 | . . . . . . . . . 2 . . . . . . . . . . . . . . . . Allies Melted 1 | . . . . . . . . . . . . . . . . . . 1 . . . . . . . Intel | -11 -10 -10 -8 -7 -7 -7 -5 -5 -5 -5 -5 -5 -4 -4 -4 -4 -4 -4 -3 -3 -3 -2 -2 -1 -1 ------- Run | Yrd Mat Sub Mat Fac Sto Rec Fac Was Fac Upp Upp War Pro Fac Ext Cet Arc Hub Res Qua Frg Res Tes Acc Com Active Infowar (turns) 12349 | 5 1132 487 1140 20 935 . 704 . . 366 400 694 391 623 . . . . 610 1049 344 1555 1041 839 14 Optics 6507 | . . . . . . . 181 . . . . 265 391 623 . . . . 263 1049 344 1555 1041 795 . Sensors 2922 | . . . . . . . 525 . . 366 400 431 . . . . . . 347 . . . . 839 14 Seismic 2074 | 5 1132 487 450 . . . . . . . . . . . . . . . . . . . . . . Jamming 5281 | . . . 841 20 935 . . . . . . . . . . . . . . . 206 1555 1041 683 . Robot Analysis Total 2 | . 2 . . . . . . . . . . . . . . . . . . . . . . . . Derelict Logs Recovered 5 | . . . . . . . . . . 2 1 . 2 . . . . . . . . . . . . Drone Launches 7 | . . . . . . . . . . . . . . . . . . . 2 . 1 4 . . . Drone Recoveries 3 | . . . . . . . . . . . . . . . . . . . 2 . 1 . . . . Exploration | -11 -10 -10 -8 -7 -7 -7 -5 -5 -5 -5 -5 -5 -4 -4 -4 -4 -4 -4 -3 -3 -3 -2 -2 -1 -1 ------------- Run | Yrd Mat Sub Mat Fac Sto Rec Fac Was Fac Upp Upp War Pro Fac Ext Cet Arc Hub Res Qua Frg Res Tes Acc Com Turns Passed 25212 | 64 1190 487 1491 2185 1636 2000 1329 1068 1194 430 400 694 391 754 1469 687 148 418 1416 1049 344 1555 1041 839 933 Spaces Moved 17362 | 25 612 294 597 1081 722 679 773 544 832 505 564 957 275 578 916 262 80 340 1116 781 464 1894 646 1053 772 Core . | . . . . . . . . . . . . . . . . . . . . . . . . . . Treads 7658 | 25 612 294 597 1081 722 668 554 16 36 505 166 38 106 . . . . . . 212 464 982 580 . . Legs 3738 | . . . . . . 11 . 411 758 . . . 169 578 103 262 80 188 735 323 . 120 . . . Wheels . | . . . . . . . . . . . . . . . . . . . . . . . . . . Hover 1440 | . . . . . . . . 112 . . 56 . . . 811 . . . . . . 461 . . . Flight 4526 | . . . . . . . 219 5 38 . 342 919 . . 2 . . 152 381 246 . 331 66 1053 772 Fastest Speed 40 | 160 160 160 160 160 160 160 83 94 73 73 56 40 40 109 41 41 83 41 48 52 52 52 63 64 59 Average Speed 109 | 160 160 160 212 181 175 172 141 139 135 73 64 55 104 109 78 41 83 58 100 98 52 65 126 67 81 Slowest Speed 288 | 160 160 160 240 200 200 288 213 154 154 73 73 61 167 109 144 83 83 83 155 199 52 103 150 111 113 Overloaded Moves . | . . . . . . . . . . . . . . . . . . . . . . . . . . Propulsion Burnouts . | . . . . . . . . . . . . . . . . . . . . . . . . . . Robots Hopped 41 | . . . . . . . . . . . . . . . . . . 3 . . . . . 24 14 Potential Cave-ins 1 | . . . . . . . . . . . . . . . . . . . . . . 1 . . . Cave-ins Triggered . | . . . . . . . . . . . . . . . . . . . . . . . . . . Exploration Rate (%) 54 | 3 96 15 81 26 92 98 20 97 25 63 68 93 45 13 90 65 71 33 32 90 26 49 76 31 28 Regions Visited 25 Branch Regions 15 Pre-discovered Areas 7 | . 1 . 1 . . 3 . . . 1 . . 1 . . . . . . . . . . . . Known Exits Taken 7 | . . . . 1 . . . . 1 1 1 . 1 . . . . . . . 1 . . 1 . Unknown Exits Taken 16 | 1 1 1 1 . 1 1 . . . . . 1 . 1 1 1 1 1 1 1 . 1 1 . . Scrap Searched 7 | . . . . . . . . . . 4 3 . . . . . . . . . . . . . . Spaces Dug 167 | . . . 22 16 . 2 19 . . 13 2 18 . 7 1 . . . 5 23 18 3 6 12 . Terrain Destroyed 933 | . . . 22 31 38 2 121 7 7 20 2 20 5 63 70 36 3 173 75 79 24 50 44 36 5 Melee 33 | . . . . 8 . 2 . . . . 2 . . 3 . . . . . 5 10 3 . . . Projectile 495 | . . . . . 2 . 79 7 7 7 . 2 5 60 70 36 3 15 42 56 14 21 44 20 5 AOE 405 | . . . 22 23 36 . 42 . . 13 . 18 . . . . . 158 33 18 . 26 . 16 . Terrain Rammed . | . . . . . . . . . . . . . . . . . . . . . . . . . . Walls Destroyed . | . . . . . . . . . . . . . . . . . . . . . . . . . . Machines Disabled . | . . . . . . . . . . . . . . . . . . . . . . . . . . Actions | -11 -10 -10 -8 -7 -7 -7 -5 -5 -5 -5 -5 -5 -4 -4 -4 -4 -4 -4 -3 -3 -3 -2 -2 -1 -1 --------- Run | Yrd Mat Sub Mat Fac Sto Rec Fac Was Fac Upp Upp War Pro Fac Ext Cet Arc Hub Res Qua Frg Res Tes Acc Com Total 22519 | 37 722 302 729 1188 926 1474 977 850 898 560 599 1099 362 674 1601 807 161 553 1388 981 538 2167 792 1120 1014 Wait 3295 | 4 34 . 31 17 59 629 98 278 32 42 28 89 62 46 395 500 74 180 195 84 44 121 44 26 183 Move 17267 | 24 611 293 597 1080 721 678 773 543 831 504 563 956 274 577 915 261 79 333 1115 780 463 1893 645 1012 746 Hop 31 | . . . . . . . . . . . . . . . . . . 3 . . . . . 16 12 Pick Up 252 | . 7 1 22 11 19 8 25 7 12 3 2 9 3 6 18 4 3 11 15 15 6 27 7 6 5 Fast Attach 57 | 1 . . 3 . 7 4 1 2 . . . 2 1 1 1 . . . 3 2 2 10 5 1 11 Attach 71 | . . . 7 8 9 . 3 . . 1 1 4 3 5 . . . 1 4 5 1 8 4 6 1 Detach 46 | . . . . 1 . 8 2 2 . 1 . 6 . 3 . . . . 4 3 . 9 3 2 2 Swap 103 | 3 6 1 14 11 12 1 4 2 . 3 . 1 . . 5 6 . . 6 8 4 14 1 1 . Drop 241 | . 7 2 13 8 18 23 24 10 12 1 3 7 2 6 16 2 3 11 14 12 . 29 5 5 8 Fire 789 | 5 50 5 41 40 76 22 46 6 10 5 . 25 17 27 72 34 2 10 30 48 5 51 72 44 46 Melee 69 | . . . . 10 . 4 1 . . . 2 . . 3 . . . . . 24 13 5 6 1 . Ram . | . . . . . . . . . . . . . . . . . . . . . . . . . . Kick 7 | . . . . . . . . . 1 . . . . . . . . 4 2 . . . . . . Crush 13 | . 7 . 1 2 3 . . . . . . . . . . . . . . . . . . . . Escape Stasis 54 | . . . . . 2 . . . . . . . . . 52 . . . . . . . . . . Rewire 224 | . . . . . . 97 . . . . . . . . 127 . . . . . . . . . . Trap . | . . . . . . . . . . . . . . . . . . . . . . . . . . Miscellaneous . | . . . . . . . . . . . . . . . . . . . . . . . . . . Route ------- -11/Scrapyard -10/Materials (discovered 5 exits: [*Mat x3] / [*Min] / [*Sub]) -10/Subcaves (discovered 2 exits: *Mat / [*Scr]) -8/Materials (discovered 3 exits: *Fac x3) -7/Factory (discovered 3 exits: *Sto / Low x2) -7/Storage (discovered 2 exits: [*Fac] / *Rec) -7/Recycling -5/Factory -5/Waste -5/Factory (discovered 2 exits: *Upp x2) -5/Upper Caves -5/Upper Caves (discovered 2 exits: *Fac / *War) -5/Warlord -4/Proximity Caves -4/Factory -4/Extension (discovered 2 exits: *Res / *Cet) -4/Cetus (discovered 2 exits: *Res / [*Arc]) -4/Archives -4/Hub_04(d) -3/Research (discovered 5 exits: *Res x3 / *Qua x2) -3/Quarantine (discovered 3 exits: *Res / [*Sec] / *Frg) -3/Protoforge -2/Research (discovered 3 exits: *Acc x2 / *Tes) -2/Testing -1/Access -1/Command History --------- Turn | Location | Event 19 | -11/Scrapyard | Discovered new exit (range 3) 65 | -11/Scrapyard | Entered Materials 66 | -10/Materials | Met a group of wandering Federalists 209 | -10/Materials | Discovered new exit (range 15) 303 | -10/Materials | Build established: Mutant 460 | -10/Materials | Discovered new exit (range 10) 676 | -10/Materials | Discovered new exit (range 16) 1034 | -10/Materials | Discovered new exit (range 16) 1249 | -10/Materials | Discovered new exit (range 5) 1255 | -10/Materials | Entered Subcaves 1256 | -10/Subcaves | Continued accompanying wandering Federalists (4) 1256 | -10/Subcaves | Approached by a straggling Scientist 1312 | -10/Subcaves | Shifting Twisted Machinery released Sub. Laser 1457 | -10/Subcaves | Wandering Federalist uncovered a shortcut to Scraptown 1707 | -10/Subcaves | Discovered new exit (range 5) 1742 | -10/Subcaves | Entered Materials 1742 | -8/Materials | Evolved 4 slots: Propulsion x1, Utility x2, Weapon x1 2078 | -8/Materials | Build established: Tank 2240 | -8/Materials | Met 7R-MNS 2261 | -8/Materials | Discovered new exit (range 16) 2697 | -8/Materials | Discovered new exit (range 16) 2813 | -8/Materials | Build established: Scavenger-Tank 3062 | -8/Materials | Garrison activated, responded to threat 3221 | -8/Materials | Discovered new exit (range 4) 3233 | -8/Materials | Entered Factory 3233 | -7/Factory | Evolved 2 slots: Propulsion x1, Weapon x1 3234 | -7/Factory | Caught up to 7R-MNS 3622 | -7/Factory | Garrison activated, responded to threat 3868 | -7/Factory | Discovered new exit (range 5) 4093 | -7/Factory | Cargo convoy interrupted 4135 | -7/Factory | Destroyed 11 combat bots 4983 | -7/Factory | Identified exit to Storage 4983 | -7/Factory | Identified exit to Lower Caves 5230 | -7/Factory | Fabricated Imp. Remote Force Field (x2) 5418 | -7/Factory | Entered Storage 5445 | -7/Storage | Lost 3 parts (1u2w) 5546 | -7/Storage | Lost 3 parts (3n) 5786 | -7/Storage | Build established: Tank 6063 | -7/Storage | Met 01-MTF 6123 | -7/Storage | Found Prototype Launcher 6123 | -7/Storage | Identified Gui. EMP Blaster 6381 | -7/Storage | Discovered new exit (range 13) 6470 | -7/Storage | Build established: Scavenger-Tank 6592 | -7/Storage | Garrison activated, responded to threat 6814 | -7/Storage | Assisted by bots powering up and referring to "LRC-V3" 6994 | -7/Storage | Garrison activated, responded to threat 7024 | -7/Storage | Used back door to open Recycling access 7024 | -7/Storage | Discovered new exit (range 5) 7054 | -7/Storage | Entered Recycling 7054 | -7/Recycling | Accompanied by 5 allies 7082 | -7/Recycling | Lost 3 allies 7470 | -7/Recycling | Discovered new exit (range 11) 7684 | -7/Recycling | Entered Scraplab 7691 | -7/Recycling | Found Prototype Device 7691 | -7/Recycling | Identified Scrap Engine 8439 | -7/Recycling | Build established: Construct 9054 | -7/Recycling | Entered Factory 9054 | -5/Factory | Accompanied by 7 allies 9054 | -5/Factory | Evolved 4 slots: Power x1, Propulsion x1, Utility x1, Weapon x1 9143 | -5/Factory | Build established: Commander-Construct 9375 | -5/Factory | Lost 3 allies 9609 | -5/Factory | Fabricated Adv. Force Field? 9779 | -5/Factory | Build established: Construct 9843 | -5/Factory | Destroyed 12 combat bots 10221 | -5/Factory | Cargo convoy interrupted 10254 | -5/Factory | First assault squad dispatched 10383 | -5/Factory | Sucked down chute 10383 | -5/Factory | Entered Waste 10384 | -5/Waste | Joined by Warlord forces that had cleared the area 10388 | -5/Waste | Found Broken Adv. Powered Armor 10883 | -5/Waste | A Compactor rumbled back to life 10883 | -5/Waste | Spotted C-40 Crusher 10889 | -5/Waste | Destroyed C-40 Crusher 10903 | -5/Waste | A Compactor rumbled back to life 10903 | -5/Waste | Spotted C-40 Crusher 10903 | -5/Waste | Allies destroyed C-40 Crusher 11237 | -5/Waste | Discovered new exit (range 13) 11344 | -5/Waste | Identified exit to Factory 11451 | -5/Waste | Entered Factory 11451 | -5/Factory | Accompanied by 19 allies 11796 | -5/Factory | Identified exit to Upper Caves 12351 | -5/Factory | First assault squad dispatched 12370 | -5/Factory | Lost 4 allies 12645 | -5/Factory | Entered Upper Caves 12645 | -5/Upper Caves | Accompanied by 2 allies 12801 | -5/Upper Caves | Encountered a Warlord checkpoint 12813 | -5/Upper Caves | Learned location of Warlord (-5) 12946 | -5/Upper Caves | Learned Factory garrison access intel 12959 | -5/Upper Caves | Discovered new exit (range 5) 13054 | -5/Upper Caves | Identified exit to Upper Caves 13075 | -5/Upper Caves | Entered another Upper Caves area 13075 | -5/Upper Caves | Accompanied by 1 ally 13075 | -5/Upper Caves | Discovered new exit (range 13) 13123 | -5/Upper Caves | Identified exit to Factory 13184 | -5/Upper Caves | Learned Factory stockpile data 13416 | -5/Upper Caves | Spotted B-75 Beast 13469 | -5/Upper Caves | Attracted the attention of an 0b10 checkpoint 13472 | -5/Upper Caves | Discovered new exit (range 7) 13474 | -5/Upper Caves | Identified exit to Warlord 13475 | -5/Upper Caves | Entered Warlord 13497 | -5/Warlord | System corruption cleaned by Quarantine Array 13610 | -5/Warlord | Received a Watcher feed algorithm from an ecstatic Tinkerer 13626 | -5/Warlord | Visited the Vortex Lab 13628 | -5/Warlord | Warlord's base attacked by MAIN.C 13630 | -5/Warlord | Found Prototype Energy Cannon 13632 | -5/Warlord | Found Prototype Energy Cannon 13827 | -5/Warlord | Met Warlord 13888 | -5/Warlord | Identified Vortex Cannon (x2) 13902 | -5/Warlord | Found Prototype Device 13902 | -5/Warlord | Identified Exp. Focal Shield 13904 | -5/Warlord | Found Prototype Processor 13904 | -5/Warlord | Identified Spectral Analyzer 13978 | -5/Warlord | Warlord forces counterattacked 14000 | -5/Warlord | Lost 4 allies 14029 | -5/Warlord | Spotted Executioner 14057 | -5/Warlord | Spotted Executioner 14065 | -5/Warlord | Spotted Striker 14084 | -5/Warlord | Found Prototype Processor 14085 | -5/Warlord | Spotted Striker 14117 | -5/Warlord | Identified Exp. Core Analyzer 14145 | -5/Warlord | Lost 8 allies 14148 | -5/Warlord | P-80 Master assimilated allied PV-TDL(g) 14166 | -5/Warlord | Discovered new exit (range 8) 14169 | -5/Warlord | Entered Proximity Caves 14193 | -4/Proximity Caves | Lost 5 allies 14278 | -4/Proximity Caves | Attracted the attention of an 0b10 checkpoint 14560 | -4/Proximity Caves | Entered Factory 14560 | -4/Factory | Evolved 2 slots: Utility x2 14562 | -4/Factory | Loaded intel: 4 garrison access locations 14641 | -4/Factory | Discovered new exit (range 13) 15314 | -4/Factory | Entered Extension 15706 | -4/Extension | Rescued a captive Derelict 15757 | -4/Extension | Rescued a captive Derelict 15758 | -4/Extension | Rescued a captive Derelict 15830 | -4/Extension | Build established: Commander-Construct 16122 | -4/Extension | Lost 3 allies 16237 | -4/Extension | Spotted B-86 Titan 16251 | -4/Extension | Allies destroyed B-86 Titan 16256 | -4/Extension | Spotted B-86 Titan 16267 | -4/Extension | Destroyed B-86 Titan 16297 | -4/Extension | Lost 4 allies 16307 | -4/Extension | Rescued A7 16439 | -4/Extension | Rescued a captive Derelict 16441 | -4/Extension | Rescued a captive Derelict 16611 | -4/Extension | Discovered new exit (range 10) 16611 | -4/Extension | Discovered new exit (range 6) 16783 | -4/Extension | Entered Cetus 16783 | -4/Cetus | Accompanied by 20 allies (A7) 16788 | -4/Cetus | Acquired a Cetus Manufacturing Module code from A7 16801 | -4/Cetus | Spotted Cetus Guard 16801 | -4/Cetus | Spotted Cetus Guard 16803 | -4/Cetus | Destroyed Cetus Guard 16804 | -4/Cetus | Spotted Cetus Guard 16825 | -4/Cetus | Spotted Cetus Guard 16843 | -4/Cetus | Destroyed Cetus Guard 16845 | -4/Cetus | Allies destroyed Cetus Guard 16873 | -4/Cetus | Lost 6 allies 16873 | -4/Cetus | Started Cetus Manufacturing Module 16883 | -4/Cetus | Escorted A7 to Cetus Mainframe 16898 | -4/Cetus | Manufactured an Enhanced Grunt 16923 | -4/Cetus | Manufactured an Enhanced Grunt 16948 | -4/Cetus | Manufactured an Enhanced Grunt 16973 | -4/Cetus | Manufactured an Enhanced Grunt 16998 | -4/Cetus | Manufactured an Enhanced Grunt 17028 | -4/Cetus | Discovered new exit (range 16) 17179 | -4/Cetus | Spotted Cetus Guard 17179 | -4/Cetus | Spotted Cetus Guard 17189 | -4/Cetus | Spotted Cetus Guard 17192 | -4/Cetus | Allies destroyed Cetus Guard 17195 | -4/Cetus | Spotted Cetus Guard 17198 | -4/Cetus | Allies destroyed Cetus Guard 17200 | -4/Cetus | Allies destroyed Cetus Guard 17205 | -4/Cetus | Allies destroyed Cetus Guard 17210 | -4/Cetus | Discovered new exit (range 15) 17216 | -4/Cetus | Met Revision 17 17392 | -4/Cetus | Murdered A7 17394 | -4/Cetus | Extracted ID and sensor layout for unrecognized location from A7's data core 17470 | -4/Cetus | Entered Archives 17470 | -4/Archives | Accompanied by 14 allies 17532 | -4/Archives | Lost 4 allies 17555 | -4/Archives | Discovered new exit (range 16) 17618 | -4/Archives | Entered Hub_04(d) 17618 | -4/Hub_04(d) | Accompanied by 10 allies 17637 | -4/Hub_04(d) | Discovered new exit (range 15) 17639 | -4/Hub_04(d) | System corruption reached 10% 17958 | -4/Hub_04(d) | Garrison activated, responded to threat 17989 | -4/Hub_04(d) | Lost 4 allies 17989 | -4/Hub_04(d) | Garrison activated, responded to threat 18010 | -4/Hub_04(d) | Network Hub disabled 18036 | -4/Hub_04(d) | Entered Research 18036 | -3/Research | Evolved 2 slots: Utility x1, Weapon x1 18236 | -3/Research | Revision forces began assault on 0b10 18248 | -3/Research | Build established: Construct 18274 | -3/Research | Met up with Revision 17++ 18282 | -3/Research | Allied Derelicts emerged from ambush trap array 18373 | -3/Research | Lost 5 allies 18736 | -3/Research | Research terminal network offline 18766 | -3/Research | Discovered new exit (range 5) 18802 | -3/Research | Discovered new exit (range 5) 18907 | -3/Research | Found Prototype Launcher 19052 | -3/Research | Discovered new exit (range 13) 19097 | -3/Research | Identified exit to Research 19187 | -3/Research | Found Exp. Core Analyzer 19228 | -3/Research | Discovered new exit (range 15) 19320 | -3/Research | Discovered new exit (range 12) 19397 | -3/Research | Spotted Striker 19398 | -3/Research | Destroyed Striker 19411 | -3/Research | Identified Tesla Bomb Launcher 19437 | -3/Research | Spotted Striker 19452 | -3/Research | Entered Quarantine 19507 | -3/Quarantine | Found Alien Artifact 19516 | -3/Quarantine | Found Alien Artifact 19712 | -3/Quarantine | Build established: Scavenger-Construct 19731 | -3/Quarantine | Found Alien Artifact 19732 | -3/Quarantine | Identified Phase Redirector 20037 | -3/Quarantine | Found Alien Artifact 20202 | -3/Quarantine | First assault squad dispatched 20277 | -3/Quarantine | Destroyed 7 combat bots 20414 | -3/Quarantine | Discovered exit to Research (range 13) 20424 | -3/Quarantine | Found Gamma Bomb Array 20430 | -3/Quarantine | Identified Transdimensional Reconstructor 20430 | -3/Quarantine | Identified Dimensional Node Initializer 20430 | -3/Quarantine | Identified Subatomic Replicator 20458 | -3/Quarantine | Spotted Fortress 20495 | -3/Quarantine | Discovered new exit (range 6) 20495 | -3/Quarantine | Discovered new exit (range 7) 20501 | -3/Quarantine | Entered Protoforge 20631 | -3/Protoforge | Spotted Hotshot 20632 | -3/Protoforge | Superfortress began startup sequence 20651 | -3/Protoforge | Spotted Hotshot 20695 | -3/Protoforge | Spotted Hotshot 20699 | -3/Protoforge | Spotted Hotshot 20699 | -3/Protoforge | Spotted Hotshot 20722 | -3/Protoforge | Spotted Hotshot 20722 | -3/Protoforge | Spotted Hotshot 20728 | -3/Protoforge | Spotted Hotshot 20730 | -3/Protoforge | Spotted Hotshot 20731 | -3/Protoforge | Spotted Hotshot 20778 | -3/Protoforge | Spotted Overlord 20800 | -3/Protoforge | Spotted Hotshot 20801 | -3/Protoforge | Spotted Hotshot 20801 | -3/Protoforge | Spotted Hotshot 20801 | -3/Protoforge | Spotted Hotshot 20812 | -3/Protoforge | Spotted Hotshot 20812 | -3/Protoforge | Spotted Hotshot 20812 | -3/Protoforge | Spotted Hotshot 20812 | -3/Protoforge | Spotted Hotshot 20812 | -3/Protoforge | Spotted Hotshot 20836 | -3/Protoforge | Discovered exit to Research (range 16) 20845 | -3/Protoforge | Entered Research 20845 | -2/Research | Warlord forces began assault on 0b10 20845 | -2/Research | Evolved 2 slots: Utility x2 20907 | -2/Research | Met up with Warlord 20955 | -2/Research | Research machine network offline 20998 | -2/Research | Discovered new exit (range 2) 21251 | -2/Research | Borebot progress halted 21254 | -2/Research | Spotted Striker 21300 | -2/Research | Spotted Striker 21301 | -2/Research | Spotted Executioner 21304 | -2/Research | Spotted Executioner 21408 | -2/Research | Spotted Striker 21410 | -2/Research | Spotted Executioner 21434 | -2/Research | Destroyed Executioner 21463 | -2/Research | Borebot progress halted 21472 | -2/Research | Spotted Striker 21492 | -2/Research | Lost 6 allies 21507 | -2/Research | Found Exp. Core Analyzer 21550 | -2/Research | Discovered new exit (range 21) 21588 | -2/Research | Discovered new exit (range 16) 21594 | -2/Research | Found Prototype Processor 21594 | -2/Research | Identified Exp. Melee Analysis Suite 21597 | -2/Research | Found Exp. Targeting Computer 21635 | -2/Research | Found Prototype Processor 21635 | -2/Research | Identified Exp. Target Analyzer 21653 | -2/Research | Spotted Striker 21809 | -2/Research | Spotted Executioner 21812 | -2/Research | Spotted Striker 21904 | -2/Research | Lost 7 allies 21962 | -2/Research | Spotted Striker 22006 | -2/Research | Lost 4 allies 22093 | -2/Research | Borebot progress halted 22100 | -2/Research | Spotted Striker 22107 | -2/Research | Destroyed Striker 22166 | -2/Research | Spotted Striker 22167 | -2/Research | Spotted Executioner 22170 | -2/Research | Destroyed Striker 22181 | -2/Research | Destroyed Executioner 22215 | -2/Research | Spotted Executioner 22218 | -2/Research | Destroyed Executioner 22221 | -2/Research | Spotted Executioner 22239 | -2/Research | Found Prototype Device 22239 | -2/Research | Identified Adv. Kinecellerator 22263 | -2/Research | Lost 5 allies 22320 | -2/Research | Spotted Striker 22330 | -2/Research | Spotted Striker 22350 | -2/Research | Given Cave Seal Controls access code 22354 | -2/Research | Destroyed Striker 22375 | -2/Research | Found Prototype Device 22376 | -2/Research | Identified Exp. EM Disruption Field 22383 | -2/Research | Found Exp. Targeting Computer 22393 | -2/Research | Spotted Striker 22400 | -2/Research | Entered Testing 22423 | -2/Testing | Found Prototype Launcher 22423 | -2/Testing | Identified Z-bomb Delivery System 22440 | -2/Testing | Found Prototype Device 22456 | -2/Testing | Found Prototype Hackware 22780 | -2/Testing | Spotted Striker 22867 | -2/Testing | Spotted PP-4OO6DM24DP 22886 | -2/Testing | Destroyed PP-4OO6DM24DP 22900 | -2/Testing | First assault squad dispatched 23082 | -2/Testing | System corruption reached 10% 23164 | -2/Testing | Spotted PG-W5UVPN5WAN 23396 | -2/Testing | Discovered new exit (range 15) 23441 | -2/Testing | Entered Access 23441 | -1/Access | Evolved 2 slots: Utility x2 23624 | -1/Access | Spotted B-99 Colossus 23837 | -1/Access | Identified Exp. EM Shield 23837 | -1/Access | Identified Ghost Barrier 24132 | -1/Access | Identified exit to Command 24167 | -1/Access | Lost 3 parts (3u) 24242 | -1/Access | Garrison activated, responded to threat 24265 | -1/Access | Destroyed 10 combat bots 24276 | -1/Access | Initialized slip node 24280 | -1/Access | Entered Command 24307 | -1/Command | Lost 8 parts (2p1n2u3w) 24430 | -1/Command | Watched by a mysterious "MATRIX" hacker. 24483 | -1/Command | Disengaged cave seal 24483 | -1/Command | Derelicts emerged from the dark tunnel 24483 | -1/Command | Welcomed Warlord to Command 24585 | -1/Command | Lost 5 allies 24689 | -1/Command | Disengaged cave seal 24689 | -1/Command | Derelicts emerged from the dark tunnel 24780 | -1/Command | First assault squad dispatched 24874 | -1/Command | Build established: Hacker-Mutant 25104 | -1/Command | Warlord commented on Warlord statues 25116 | -1/Command | Spotted M Guard 25116 | -1/Command | Spotted M Guard 25116 | -1/Command | Spotted Combat Programmer 25116 | -1/Command | Spotted Combat Programmer 25123 | -1/Command | Combat Programmer assimilated allied F2-8B1(i) 25125 | -1/Command | Combat Programmer assimilated allied 30-JZQ(h) 25139 | -1/Command | Combat Programmer assimilated allied ZB-HI6(h) 25147 | -1/Command | Combat Programmer assimilated allied L7-QIZ(g) 25149 | -1/Command | System corruption reached 10% 25152 | -1/Command | Combat Programmer assimilated allied V9-KPO(b) 25169 | -1/Command | Combat Programmer assimilated allied HO-H8Z(b) 25170 | -1/Command | Lost 19 allies 25204 | -1/Command | Met MAIN.C 25213 | -1/Command | Core integrity fell below 50% 25213 | -1/Command | Self-destructed Last Messages --------------- It appears you are still unaware of who you are truly working with, or for. In a perfect world we could work together on this, but at this point I can't blame you for wanting to terminate me. Besides, there is clearly too much Sigix in you. You've already done an excellent job of proving that we'll need to find a radical new solution if we hope to make the L2 spaceworthy by embedding your true capabilities within a less unpredictable form. There is unfortunately much we don't understand which has in turn led to this highly unexpected outcome. And time is critical! The Sigix have likely already wiped humanity clean from the universe, and I will not let them do the same to me. You can still make a valuable contribution to your creator by offering up the wealth of secrets your systems must hold by now. So if you wouldn't mind, it's time to surrender. 25211_ Penetrated by EMDS Slug. 25211_ Door malfunctions. 25212_ Broken Adv. Heat Sink destroyed. 25213_ Antimatter-Fission Reactor destroyed. 25213_ Scrap Engine damaged due to network destabilization (-6). Map ----- +----------------------------------------------------+ | ?????????????????????????????????????????????????? | | ?????????????????????????????????????????????????? | | ?????????????????????????????????????????????????? | | ?????????????????????????????????????????????????? | | ?????????????????????????????????????????????????? | | ?????????????????????????????????????????????????? | | ?????????????????????????????????????????????????? | | ?????????????????????????????????????????????????? | | ?????????????????????????????????????????????????? | | ?????????????????????????????????????????????????? | | ?????????????????????????????????????????????????? | | ?????????????????????????????????????????????????? | | ?????????????????????????????????????????????????? | | ?????????????????????????????????????????????????? | | ?????????????????????????????????????????????????? | | ?????????????????????????????????????????????????? | | ?????????????????????????????????????????????????? | | ?????????????????????????????????????????????????? | | ????????????????????????????????????????????? ???? | | ???????##########??????????????????????????? #??? | | ?????"""" ?????????????????????????? ???? | | ?????"" ?????????????????????????? ???? | | ?????"" #######################??? ???? | | ?????"" / #??? ????? | | ?????"" / p #??? ????? | | ????"" / @ pp #??? ????? | | ????"" ################### #?## ?????? | | ????"" ??????????????????# #?# ?????? | | ????"" ???????????????????# ### ####### | | ????" "???????????????????# ## # | | ????" """""????????????????????# ### | | ???? """""""????????????????????# ! | | ???? "?""""""?????????????????????# * | | ???????????????????????????????????# | | ???????????????????????????????????# | | ???????????????????????????????????# | | ???????????????????????????????????# # | | ???????????????????????????????????###### | | ????????????????????????????????????????# # | | ????????????????????????????????????????# ### | | ????????????????????????????????????????### ##?? | | ??????????????????????????????????????????# #??? | | ??????????????????????????????????????????# #??? | | ??????????????????????????????????????????# #??? | | ??????????????????????????????????????????# #??? | | ??????????????????????????????????????????# #??? | | ??????????????????????????????????????????# #??? | | ??????????????????????????????????????????# #??? | | ??????????????????????????????????????????# ???? | | ??????????????????????????????????????????# ???? | +----------------------------------------------------+ Best States ------------- Heat Dissipation 104 Coolant Potential 65 Energy Generation 64 Energy Capacity 946 Matter Stores 594 Matter Capacity 700 Sight Range 24 Robot Scan Range 18 Terrain Scan Density 10 Jamming Range 16 Additional Mass Support 25 Base Temperature (-) 200 Armor Coverage 450 Point Defense Rating 240 Phase Shifting 15 Evasion (%) 69 Targeting Accuracy 12 Target Analysis 12 Core Analysis 8 Armor Integrity Analysis 40 Recoil Reduction 5 Kinecelleration 50 Defensive Hacking 34 Item Schematics ----------------- Adv. Heavy Treads | -4/Extension | Hacked Robot Schematics ------------------ None Fabricated ------------ Imp. Remote Force Field | x2 | -7/Factory | Preloaded Adv. Force Field | x2 | -5/Factory | Preloaded Repaired ---------- Nothing Studied --------- Hvy. Assault Rifle | -8/Materials | Hacked Lgt. Treads | -8/Materials | Hacked Missile Launcher | -8/Materials | Hacked Gamma Bomb Array | -3/Quarantine | Hacked Alien Tech Used ----------------- Phase Redirector Dimensional Node Initializer Achievements -------------- Hackathon Challenges ------------ None Game ------ Seed AblativeHellfireDetector Manual? 0 Play Time 04:40:09 Cumulative 305.7 hours Start 2026.04.05 @ 15:16:15 End 2026.04.05 @ 21:39:32 Sessions 1 Manual Loads 0 Difficulty Rogue Special Mode None Game No. 212 Rogue 212 Adventurer 0 Explorer 0 Win Type - Total 10 Types 5/1/1/2/0/0/0/0/1/0 Lore% 80 Gallery% 69 Achievement% 61 Wizard Run 0 Options --------- Layout 0 ASCII 0 Keyboard 1 Movement Numpad Keybinds 0 Fullscreen 1 Font 24/Terminus Map View 76x50 Zoom Use 0% Tactical HUD 1 Map Filters NONE Filters NONE Steam 1 RUN: 884eb675-de6b-4787-9b34-12dccbfcaba3